[Event "Early-Titled-Tuesday-Blitz-April-02-2024"]
[Site "Chess.com"]
[Date "2024.04.02"]
[Round "7"]
[White "DefenceWinsChampionships"]
[Black "zurzan"]
[Result "1-0"]
[WhiteElo "2299"]
[BlackElo "2070"]
[TimeControl "180+1"]
[EndTime "9:18:24 PDT"]
[Termination "DefenceWinsChampionships won by resignation"]

1. e4 {[%clk 0:02:59.1]} 1... c5 {[%clk 0:02:59.9]} 2. c3 {[%clk 0:02:59.3]}
2... d5 {[%clk 0:02:58.7]} 3. exd5 {[%clk 0:02:59.3]} 3... Nf6 {[%clk
0:02:58.8]} 4. d4 {[%clk 0:02:56.4]} 4... cxd4 {[%clk 0:02:58.2]} 5. Qxd4 {[%clk
0:02:55.5]} 5... g6 {[%clk 0:02:58.4]} 6. Bf4 {[%clk 0:02:42.8]} 6... Bg7 {[%clk
0:02:57.3]} 7. Bxb8 {[%clk 0:02:12.8]} 7... Rxb8 {[%clk 0:02:56.5]} 8. Qxa7
{[%clk 0:02:12.8]} 8... Bd7 {[%clk 0:02:47.3]} 9. Bc4 {[%clk 0:02:07.1]} 9...
O-O {[%clk 0:02:45.3]} 10. Nf3 {[%clk 0:01:57.8]} 10... Qc8 {[%clk 0:02:44]} 11.
Bb3 {[%clk 0:01:53.3]} 11... Ne4 {[%clk 0:02:34.8]} 12. Nbd2 {[%clk 0:01:39.1]}
12... Nc5 {[%clk 0:02:26.9]} 13. O-O {[%clk 0:01:28.3]} 13... Nxb3 {[%clk
0:02:19]} 14. axb3 {[%clk 0:01:26.4]} 14... Bb5 {[%clk 0:02:04.8]} 15. Rfe1
{[%clk 0:01:24.8]} 15... Ra8 {[%clk 0:01:19]} 16. Qxa8 {[%clk 0:01:02]} 16...
Qxa8 {[%clk 0:01:19.9]} 17. Rxa8 {[%clk 0:01:01]} 17... Rxa8 {[%clk 0:01:20.8]}
18. Rxe7 {[%clk 0:00:59.9]} 18... Ra1+ {[%clk 0:01:18.1]} 19. Re1 {[%clk
0:00:58.7]} 19... Ra2 {[%clk 0:01:17]} 20. c4 {[%clk 0:00:56.3]} 20... Ba6
{[%clk 0:01:16.6]} 21. d6 {[%clk 0:00:39.3]} 21... Bf6 {[%clk 0:00:43.6]} 22. d7
{[%clk 0:00:38]} 22... Kg7 {[%clk 0:00:43.3]} 23. Re8 {[%clk 0:00:29.4]} 23...
Ra1+ {[%clk 0:00:42.7]} 24. Nf1 {[%clk 0:00:29.1]} 24... Rd1 {[%clk 0:00:40.6]}
25. Nd2 {[%clk 0:00:27.8]} 25... b5 {[%clk 0:00:33.4]} 26. d8=Q {[%clk
0:00:26.1]} 26... Bxd8 {[%clk 0:00:33]} 27. Rxd8 {[%clk 0:00:26.2]} 27... bxc4
{[%clk 0:00:33.6]} 28. Rd6 {[%clk 0:00:19.6]} 28... c3 {[%clk 0:00:27.1]} 29.
Rxa6 {[%clk 0:00:11]} 29... cxd2 {[%clk 0:00:18.8]} 30. Rd6 {[%clk 0:00:10]}
30... f5 {[%clk 0:00:16.8]} 31. Rxd2 {[%clk 0:00:09]} 31... Rb1 {[%clk
0:00:17.3]} 32. f3 {[%clk 0:00:09.2]} 32... Kf6 {[%clk 0:00:16.5]} 33. Kf2
{[%clk 0:00:09.8]} 33... Ke5 {[%clk 0:00:16.8]} 34. Ne3 {[%clk 0:00:10.2]} 34...
f4 {[%clk 0:00:15.6]} 35. Nc4+ {[%clk 0:00:10.8]} 35... Ke6 {[%clk 0:00:14.8]}
36. g3 {[%clk 0:00:11.2]} 36... fxg3+ {[%clk 0:00:14.5]} 37. hxg3 {[%clk
0:00:12.1]} 37... Rh1 {[%clk 0:00:13.8]} 38. Ke3 {[%clk 0:00:11.4]} 38... Rh3
{[%clk 0:00:13.1]} 39. g4 {[%clk 0:00:11.1]} 39... h5 {[%clk 0:00:12.4]} 40.
Rd6+ {[%clk 0:00:10.9]} 40... Kf7 {[%clk 0:00:11.5]} 41. gxh5 {[%clk 0:00:10.8]}
41... gxh5 {[%clk 0:00:11.4]} 42. b4 {[%clk 0:00:10.8]} 42... h4 {[%clk
0:00:11.3]} 43. b5 {[%clk 0:00:10.9]} 43... Rh1 {[%clk 0:00:11.7]} 44. b6 {[%clk
0:00:11.2]} 44... h3 {[%clk 0:00:06.5]} 45. b7 {[%clk 0:00:10.6]} 45... h2
{[%clk 0:00:06.9]} 46. b8=Q {[%clk 0:00:08.4]} 46... Re1+ {[%clk 0:00:06.9]} 47.
Kf2 {[%clk 0:00:08.1]} 47... h1=Q {[%clk 0:00:06.8]} 48. Rd7+ {[%clk 0:00:04.1]}
48... Re7 {[%clk 0:00:06.1]} 49. Rxe7+ {[%clk 0:00:03.1]} 49... Kxe7 {[%clk
0:00:07]} 50. Qe5+ {[%clk 0:00:03.1]} 50... Kf8 {[%clk 0:00:06.6]} 51. Qf5+
{[%clk 0:00:03.1]} 51... Ke7 {[%clk 0:00:06.3]} 52. Qe4+ {[%clk 0:00:03.2]}
52... Kf8 {[%clk 0:00:06.4]} 53. Ne3 {[%clk 0:00:03.2]} 53... Qh2+ {[%clk
0:00:05.8]} 54. Ng2 {[%clk 0:00:03.2]} 54... Qh6 {[%clk 0:00:04.7]} 55. Qf4+
{[%clk 0:00:04.1]} 55... Qxf4 {[%clk 0:00:04.3]} 56. Nxf4 {[%clk 0:00:04.8]}
56... Ke7 {[%clk 0:00:05.2]} 57. Nd3 {[%clk 0:00:05.4]} 57... Kd6 {[%clk
0:00:06.1]} 58. Ke3 {[%clk 0:00:05.9]} 58... Kd5 {[%clk 0:00:07]} 59. f4 {[%clk
0:00:06.5]} 59... Kc4 {[%clk 0:00:07.5]} 60. f5 {[%clk 0:00:06.8]} 60... Kb3
{[%clk 0:00:08.4]} 61. f6 {[%clk 0:00:07.2]} 61... Kc4 {[%clk 0:00:09.3]} 62. f7
{[%clk 0:00:07.8]} 62... Kd5 {[%clk 0:00:10.2]} 63. f8=Q {[%clk 0:00:06.8]} 1-0

[Event "Early-Titled-Tuesday-Blitz-April-02-2024"]
[Site "Chess.com"]
[Date "2024.04.02"]
[Round "7"]
[White "sokidze"]
[Black "kachsona"]
[Result "1-0"]
[WhiteElo "2794"]
[BlackElo "2605"]
[TimeControl "180+1"]
[EndTime "9:18:26 PDT"]
[Termination "sokidze won by resignation"]

1. d4 {[%clk 0:03:00.9]} 1... d6 {[%clk 0:02:58.3]} 2. e4 {[%clk 0:03:00.2]}
2... Nf6 {[%clk 0:02:57.5]} 3. Nc3 {[%clk 0:03:00.3]} 3... Nbd7 {[%clk
0:02:58.2]} 4. Nf3 {[%clk 0:03:00.3]} 4... e5 {[%clk 0:02:58.6]} 5. Bc4 {[%clk
0:03:00.6]} 5... Be7 {[%clk 0:02:58.6]} 6. O-O {[%clk 0:03:01.3]} 6... O-O
{[%clk 0:02:58.4]} 7. a4 {[%clk 0:03:01.9]} 7... c6 {[%clk 0:02:58.2]} 8. Re1
{[%clk 0:03:00.8]} 8... a5 {[%clk 0:02:57]} 9. h3 {[%clk 0:02:59.7]} 9... h6
{[%clk 0:02:56.4]} 10. Be3 {[%clk 0:02:59.1]} 10... Re8 {[%clk 0:02:55.5]} 11.
Qd2 {[%clk 0:02:54.9]} 11... exd4 {[%clk 0:02:47.2]} 12. Bxd4 {[%clk 0:02:54.5]}
12... Nf8 {[%clk 0:02:40.3]} 13. Rad1 {[%clk 0:02:51.8]} 13... Be6 {[%clk
0:02:37.5]} 14. Bf1 {[%clk 0:02:47.4]} 14... N6d7 {[%clk 0:02:19]} 15. Be3
{[%clk 0:02:38.4]} 15... Ng6 {[%clk 0:02:12.4]} 16. b3 {[%clk 0:02:36]} 16...
Bf8 {[%clk 0:02:07.2]} 17. Nd4 {[%clk 0:02:34.3]} 17... Nf6 {[%clk 0:01:47.2]}
18. f4 {[%clk 0:02:20.1]} 18... Bd7 {[%clk 0:01:38.1]} 19. Bf2 {[%clk
0:02:19.4]} 19... Qc7 {[%clk 0:01:26.4]} 20. g4 {[%clk 0:02:08.3]} 20... Re7
{[%clk 0:00:46.8]} 21. Nf5 {[%clk 0:01:57.5]} 21... Re6 {[%clk 0:00:37.8]} 22.
Bg2 {[%clk 0:00:47]} 22... Rae8 {[%clk 0:00:33.1]} 23. Kh1 {[%clk 0:00:43.9]}
23... Qc8 {[%clk 0:00:16.4]} 24. Bd4 {[%clk 0:00:18.7]} 24... Qb8 {[%clk
0:00:09.4]} 25. Ng3 {[%clk 0:00:14.8]} 25... R6e7 {[%clk 0:00:03.7]} 26. Bxf6
{[%clk 0:00:14]} 26... gxf6 {[%clk 0:00:04.6]} 27. Nh5 {[%clk 0:00:10.6]} 27...
Bg7 {[%clk 0:00:04.3]} 28. Qxd6 {[%clk 0:00:10.7]} 28... Qxd6 {[%clk 0:00:04.4]}
29. Rxd6 {[%clk 0:00:11.6]} 29... Bc8 {[%clk 0:00:02.5]} 30. Nxf6+ {[%clk
0:00:11]} 30... Bxf6 {[%clk 0:00:02.8]} 31. Rxf6 {[%clk 0:00:11.6]} 31... Kg7
{[%clk 0:00:02.8]} 32. Rd6 {[%clk 0:00:11.3]} 32... Nxf4 {[%clk 0:00:02.6]} 33.
Rf1 {[%clk 0:00:09.5]} 33... Ne6 {[%clk 0:00:02]} 34. Kh2 {[%clk 0:00:06.7]}
34... Rd7 {[%clk 0:00:01.7]} 35. Rfd1 {[%clk 0:00:06.5]} 35... Rxd6 {[%clk
0:00:01.8]} 36. Rxd6 {[%clk 0:00:07.4]} 36... Nc5 {[%clk 0:00:01.4]} 37. Kg3
{[%clk 0:00:06.8]} 37... Be6 {[%clk 0:00:01.4]} 38. Kf4 {[%clk 0:00:06.8]} 38...
Kf6 {[%clk 0:00:01.9]} 39. e5+ {[%clk 0:00:07.1]} 39... Ke7 {[%clk 0:00:02.4]}
40. Ne4 {[%clk 0:00:05.2]} 40... Rh8 {[%clk 0:00:01.8]} 41. Nxc5 {[%clk
0:00:05.2]} 41... h5 {[%clk 0:00:01.8]} 42. Nxe6 {[%clk 0:00:05.3]} 42... fxe6
{[%clk 0:00:02.6]} 43. g5 {[%clk 0:00:06]} 43... Rf8+ {[%clk 0:00:02.6]} 44. Ke4
{[%clk 0:00:06.6]} 44... Rf2 {[%clk 0:00:02.8]} 45. Bf3 {[%clk 0:00:07.1]} 45...
Rxc2 {[%clk 0:00:02.9]} 46. Bxh5 {[%clk 0:00:05.5]} 46... Rc1 {[%clk 0:00:01.6]}
47. Rd3 {[%clk 0:00:04.7]} 47... Re1+ {[%clk 0:00:01.7]} 48. Re3 {[%clk
0:00:04.5]} 48... Rg1 {[%clk 0:00:02.4]} 49. Bg4 {[%clk 0:00:04.9]} 49... Kf7
{[%clk 0:00:01.7]} 50. Rf3+ {[%clk 0:00:04.8]} 50... Ke7 {[%clk 0:00:02.4]} 51.
g6 {[%clk 0:00:04.2]} 51... Re1+ {[%clk 0:00:02.4]} 52. Kf4 {[%clk 0:00:04.5]}
52... Kf8 {[%clk 0:00:02.1]} 53. Kg5+ {[%clk 0:00:04.4]} 53... Kg7 {[%clk
0:00:02.6]} 54. Rf7+ {[%clk 0:00:05]} 54... Kg8 {[%clk 0:00:03.2]} 55. Kf6
{[%clk 0:00:05.3]} 55... Rf1+ {[%clk 0:00:03.2]} 56. Ke7 {[%clk 0:00:05.9]}
56... Re1 {[%clk 0:00:03.4]} 57. Bxe6 {[%clk 0:00:06.5]} 57... Rxe5 {[%clk
0:00:03.8]} 58. Rf5+ {[%clk 0:00:06.8]} 1-0

[Event "Early-Titled-Tuesday-Blitz-April-02-2024"]
[Site "Chess.com"]
[Date "2024.04.02"]
[Round "7"]
[White "Lukianoo"]
[Black "Durarbayli"]
[Result "1-0"]
[WhiteElo "2831"]
[BlackElo "2928"]
[TimeControl "180+1"]
[EndTime "9:18:29 PDT"]
[Termination "Lukianoo won by resignation"]

1. e4 {[%clk 0:02:58.7]} 1... e6 {[%clk 0:03:00]} 2. d4 {[%clk 0:02:58.2]} 2...
d5 {[%clk 0:03:00.3]} 3. e5 {[%clk 0:02:58.8]} 3... c5 {[%clk 0:02:59.3]} 4. c3
{[%clk 0:02:59.2]} 4... Nc6 {[%clk 0:02:59.4]} 5. Nf3 {[%clk 0:02:59.6]} 5...
Bd7 {[%clk 0:02:59.8]} 6. Be2 {[%clk 0:02:59.9]} 6... Nge7 {[%clk 0:02:59.5]} 7.
O-O {[%clk 0:02:59.9]} 7... Nf5 {[%clk 0:02:58.1]} 8. g4 {[%clk 0:03:00]} 8...
Nh4 {[%clk 0:02:53.9]} 9. Nxh4 {[%clk 0:03:00.1]} 9... Qxh4 {[%clk 0:02:54.6]}
10. f4 {[%clk 0:03:00.5]} 10... Qd8 {[%clk 0:02:41.9]} 11. Be3 {[%clk
0:02:58.3]} 11... Qb6 {[%clk 0:02:40.5]} 12. Na3 {[%clk 0:02:55.3]} 12... cxd4
{[%clk 0:02:34.6]} 13. cxd4 {[%clk 0:02:56.2]} 13... a6 {[%clk 0:02:28.7]} 14.
Nc2 {[%clk 0:02:55]} 14... f5 {[%clk 0:02:05.7]} 15. gxf5 {[%clk 0:02:18.4]}
15... exf5 {[%clk 0:02:02.4]} 16. Rb1 {[%clk 0:02:17.6]} 16... Nd8 {[%clk
0:02:00.4]} 17. Bf3 {[%clk 0:02:03.6]} 17... Bc6 {[%clk 0:01:49.5]} 18. b4
{[%clk 0:02:02.9]} 18... Ne6 {[%clk 0:01:48.3]} 19. a4 {[%clk 0:01:49.5]} 19...
Bxa4 {[%clk 0:01:39.2]} 20. Bxd5 {[%clk 0:01:49.3]} 20... Rc8 {[%clk 0:01:39.6]}
21. Rb2 {[%clk 0:01:23.2]} 21... Be7 {[%clk 0:01:07.5]} 22. Ba2 {[%clk
0:01:11.2]} 22... Nc7 {[%clk 0:00:23.4]} 23. d5 {[%clk 0:01:01.8]} 23... Qg6+
{[%clk 0:00:22.4]} 24. Kh1 {[%clk 0:00:58]} 24... Rd8 {[%clk 0:00:23]} 25. b5
{[%clk 0:00:44.3]} 25... Bxb5 {[%clk 0:00:18.2]} 26. Rg1 {[%clk 0:00:40.6]}
26... Nxd5 {[%clk 0:00:11.6]} 27. Rxg6 {[%clk 0:00:23]} 27... Nxe3 {[%clk
0:00:11.8]} 28. Qxd8+ {[%clk 0:00:15.7]} 28... Kxd8 {[%clk 0:00:07.1]} 29. Rxg7
{[%clk 0:00:15.3]} 29... Bc6+ {[%clk 0:00:05.3]} 30. Kg1 {[%clk 0:00:15.2]}
30... Nd1 {[%clk 0:00:05.5]} 31. Rb1 {[%clk 0:00:12.8]} 31... Bc5+ {[%clk
0:00:06.4]} 32. Kf1 {[%clk 0:00:12.5]} 32... Nc3 {[%clk 0:00:06.9]} 33. Ra1
{[%clk 0:00:12.3]} 33... Kc8 {[%clk 0:00:03.2]} 34. Be6+ {[%clk 0:00:11.6]}
34... Kb8 {[%clk 0:00:03.7]} 35. Rg8+ {[%clk 0:00:09.6]} 35... Rxg8 {[%clk
0:00:03.7]} 36. Bxg8 {[%clk 0:00:10.5]} 36... h6 {[%clk 0:00:03.8]} 37. Bh7
{[%clk 0:00:09.5]} 37... Be4 {[%clk 0:00:04.4]} 38. Ne1 {[%clk 0:00:09.5]} 38...
Nd5 {[%clk 0:00:04.9]} 39. Rc1 {[%clk 0:00:05.5]} 39... Be3 {[%clk 0:00:04.6]}
40. Rd1 {[%clk 0:00:05.7]} 40... Bxf4 {[%clk 0:00:04.8]} 41. Bxf5 {[%clk
0:00:04.9]} 41... Ne3+ {[%clk 0:00:04.7]} 42. Ke2 {[%clk 0:00:05.4]} 42... Bxf5
{[%clk 0:00:05]} 43. Rd8+ {[%clk 0:00:05.7]} 43... Kc7 {[%clk 0:00:04.7]} 44.
Rf8 {[%clk 0:00:05.6]} 44... Bg4+ {[%clk 0:00:05.2]} 45. Kd3 {[%clk 0:00:05.4]}
45... Nd5 {[%clk 0:00:04.7]} 46. Ke4 {[%clk 0:00:05.4]} 46... Bxe5 {[%clk
0:00:02.4]} 47. Kxe5 {[%clk 0:00:05.2]} 47... Nb4 {[%clk 0:00:02.7]} 48. Rf4
{[%clk 0:00:03.8]} 48... Nc6+ {[%clk 0:00:02.3]} 49. Kd5 {[%clk 0:00:03.5]}
49... h5 {[%clk 0:00:03.2]} 50. Nd3 {[%clk 0:00:02.9]} 50... Kb6 {[%clk
0:00:02.8]} 51. Kd6 {[%clk 0:00:02.9]} 51... a5 {[%clk 0:00:02.7]} 52. Nc5
{[%clk 0:00:03]} 52... Na7 {[%clk 0:00:02]} 53. Rf7 {[%clk 0:00:02.4]} 53...
Nb5+ {[%clk 0:00:02.5]} 54. Kd5 {[%clk 0:00:02.3]} 54... Nc7+ {[%clk 0:00:02.8]}
55. Kd6 {[%clk 0:00:02.3]} 55... Nb5+ {[%clk 0:00:03.2]} 56. Kd5 {[%clk
0:00:02.8]} 56... Nc7+ {[%clk 0:00:03.2]} 57. Kd4 {[%clk 0:00:02.5]} 57... Ne6+
{[%clk 0:00:03.5]} 58. Nxe6 {[%clk 0:00:02.8]} 58... Bxe6 {[%clk 0:00:04]} 59.
Rf6 {[%clk 0:00:03.3]} 59... Kb5 {[%clk 0:00:04.9]} 60. Rxe6 {[%clk 0:00:03.7]}
60... Kb4 {[%clk 0:00:05.8]} 61. Kd3 {[%clk 0:00:02.8]} 61... b5 {[%clk
0:00:06.7]} 62. Kc2 {[%clk 0:00:03.3]} 62... a4 {[%clk 0:00:07]} 63. Kb2 {[%clk
0:00:03.8]} 1-0

[Event "Early-Titled-Tuesday-Blitz-April-02-2024"]
[Site "Chess.com"]
[Date "2024.04.02"]
[Round "7"]
[White "GoltsevDmitry2000"]
[Black "Anton_Demchenko"]
[Result "1-0"]
[WhiteElo "2833"]
[BlackElo "2963"]
[TimeControl "180+1"]
[EndTime "9:18:30 PDT"]
[Termination "GoltsevDmitry2000 won by resignation"]

1. e4 {[%clk 0:03:00]} 1... e5 {[%clk 0:02:59.9]} 2. Nf3 {[%clk 0:02:55.4]} 2...
Nc6 {[%clk 0:03:00.5]} 3. Bb5 {[%clk 0:02:55.3]} 3... a6 {[%clk 0:03:00.4]} 4.
Ba4 {[%clk 0:02:55.6]} 4... Nge7 {[%clk 0:03:00.9]} 5. O-O {[%clk 0:02:55]} 5...
Ng6 {[%clk 0:03:00]} 6. c3 {[%clk 0:02:54.5]} 6... d6 {[%clk 0:02:59.7]} 7. d4
{[%clk 0:02:54.9]} 7... Bd7 {[%clk 0:03:00.2]} 8. dxe5 {[%clk 0:02:54]} 8...
dxe5 {[%clk 0:02:58.7]} 9. Be3 {[%clk 0:02:52.6]} 9... Bd6 {[%clk 0:02:56.2]}
10. Nbd2 {[%clk 0:02:51.9]} 10... O-O {[%clk 0:02:53.9]} 11. Bb3 {[%clk
0:02:48]} 11... b5 {[%clk 0:02:50.5]} 12. a4 {[%clk 0:02:47.1]} 12... Rb8 {[%clk
0:02:47]} 13. axb5 {[%clk 0:02:46.4]} 13... axb5 {[%clk 0:02:47.9]} 14. Ng5
{[%clk 0:02:41.5]} 14... h6 {[%clk 0:02:32.5]} 15. Qh5 {[%clk 0:02:33.7]} 15...
Qf6 {[%clk 0:02:32.8]} 16. Ngf3 {[%clk 0:02:21.6]} 16... Nf4 {[%clk 0:02:24.2]}
17. Bxf4 {[%clk 0:02:18.4]} 17... Qxf4 {[%clk 0:02:25.1]} 18. h3 {[%clk
0:01:49.7]} 18... Ne7 {[%clk 0:02:11.9]} 19. Rfd1 {[%clk 0:01:37]} 19... g6
{[%clk 0:01:54.9]} 20. Qh4 {[%clk 0:01:36.1]} 20... Qxh4 {[%clk 0:01:55.2]} 21.
Nxh4 {[%clk 0:01:37]} 21... Kg7 {[%clk 0:01:55.6]} 22. Nhf3 {[%clk 0:01:36.1]}
22... Nc8 {[%clk 0:01:50.5]} 23. Nf1 {[%clk 0:01:34.9]} 23... Nb6 {[%clk
0:01:49.2]} 24. Ne3 {[%clk 0:01:35.1]} 24... Ra8 {[%clk 0:01:41.4]} 25. Nd5
{[%clk 0:01:32.3]} 25... Rxa1 {[%clk 0:01:18.7]} 26. Rxa1 {[%clk 0:01:33.2]}
26... Na4 {[%clk 0:01:19.2]} 27. Ra2 {[%clk 0:01:20.3]} 27... Rb8 {[%clk
0:01:17.6]} 28. Nd2 {[%clk 0:01:18.1]} 28... Nc5 {[%clk 0:01:07.3]} 29. Bc2
{[%clk 0:01:16.9]} 29... Be6 {[%clk 0:01:07.8]} 30. b4 {[%clk 0:01:15.3]} 30...
Nd7 {[%clk 0:00:45.4]} 31. Ra7 {[%clk 0:01:09.3]} 31... c5 {[%clk 0:00:40.2]}
32. Bb3 {[%clk 0:01:04.2]} 32... c4 {[%clk 0:00:39]} 33. Bd1 {[%clk 0:01:01.3]}
33... Bxd5 {[%clk 0:00:35.8]} 34. Rxd7 {[%clk 0:01:00.6]} 34... Bxb4 {[%clk
0:00:29]} 35. cxb4 {[%clk 0:01:00]} 35... Be6 {[%clk 0:00:29.7]} 36. Rd6 {[%clk
0:00:56.8]} 36... Ra8 {[%clk 0:00:30]} 37. Kf1 {[%clk 0:00:54.3]} 37... Ra1
{[%clk 0:00:27.5]} 38. Ke2 {[%clk 0:00:54.5]} 38... c3 {[%clk 0:00:28.2]} 39.
Nb3 {[%clk 0:00:49.5]} 39... Bc4+ {[%clk 0:00:28]} 40. Ke3 {[%clk 0:00:47.9]}
40... Ra3 {[%clk 0:00:27.6]} 41. Rc6 {[%clk 0:00:43]} 41... f5 {[%clk
0:00:20.2]} 42. exf5 {[%clk 0:00:40.4]} 42... gxf5 {[%clk 0:00:20.4]} 43. g3
{[%clk 0:00:24.3]} 43... h5 {[%clk 0:00:19.1]} 44. h4 {[%clk 0:00:20.7]} 44...
Kf8 {[%clk 0:00:17.7]} 45. Rc5 {[%clk 0:00:19]} 45... Kg7 {[%clk 0:00:13.8]} 46.
f4 {[%clk 0:00:17.8]} 46... e4 {[%clk 0:00:11.6]} 47. Kd4 {[%clk 0:00:14.9]}
47... Ra2 {[%clk 0:00:10.2]} 48. Rc7+ {[%clk 0:00:14]} 48... Kf6 {[%clk
0:00:09.9]} 49. Rc6+ {[%clk 0:00:14]} 49... Kg7 {[%clk 0:00:09.8]} 50. Kxc3
{[%clk 0:00:14.6]} 50... Rg2 {[%clk 0:00:10.4]} 51. Nd4 {[%clk 0:00:13.1]} 51...
Rxg3+ {[%clk 0:00:10.8]} 52. Kc2 {[%clk 0:00:12.8]} 52... Rd3 {[%clk 0:00:06]}
53. Nxf5+ {[%clk 0:00:12.8]} 53... Kf8 {[%clk 0:00:06.3]} 54. Bxh5 {[%clk
0:00:13.6]} 54... Rd8 {[%clk 0:00:02.1]} 55. Rh6 {[%clk 0:00:11.4]} 55... Bg8
{[%clk 0:00:01.6]} 56. Rf6+ {[%clk 0:00:11.4]} 56... Bf7 {[%clk 0:00:01.4]} 57.
Rxf7+ {[%clk 0:00:11.8]} 57... Kg8 {[%clk 0:00:02.1]} 1-0

[Event "Early-Titled-Tuesday-Blitz-April-02-2024"]
[Site "Chess.com"]
[Date "2024.04.02"]
[Round "7"]
[White "jumpingknight20"]
[Black "stollenmonster"]
[Result "1-0"]
[WhiteElo "2704"]
[BlackElo "2890"]
[TimeControl "180+1"]
[EndTime "9:18:31 PDT"]
[Termination "jumpingknight20 won by checkmate"]

1. e4 {[%clk 0:03:00.9]} 1... c5 {[%clk 0:03:00.2]} 2. c3 {[%clk 0:02:58.5]}
2... Nf6 {[%clk 0:03:00.6]} 3. e5 {[%clk 0:02:58.8]} 3... Nd5 {[%clk 0:03:01.1]}
4. d4 {[%clk 0:02:54.1]} 4... cxd4 {[%clk 0:03:02]} 5. cxd4 {[%clk 0:02:55]}
5... Nc6 {[%clk 0:03:02.7]} 6. Nf3 {[%clk 0:02:55.4]} 6... g6 {[%clk 0:03:03.1]}
7. Bc4 {[%clk 0:02:54.3]} 7... Nb6 {[%clk 0:03:03.2]} 8. Bb3 {[%clk 0:02:54.7]}
8... Bg7 {[%clk 0:03:03.8]} 9. O-O {[%clk 0:02:51.2]} 9... O-O {[%clk
0:03:03.5]} 10. h3 {[%clk 0:02:47.9]} 10... d6 {[%clk 0:03:03.3]} 11. Bf4 {[%clk
0:02:44.4]} 11... Bf5 {[%clk 0:03:02.4]} 12. exd6 {[%clk 0:02:40.2]} 12... exd6
{[%clk 0:03:03.3]} 13. Nc3 {[%clk 0:02:35.3]} 13... Na5 {[%clk 0:02:52.6]} 14.
Bc2 {[%clk 0:02:34.7]} 14... Bxc2 {[%clk 0:02:50.5]} 15. Qxc2 {[%clk 0:02:35.6]}
15... Rc8 {[%clk 0:02:50.8]} 16. Rfe1 {[%clk 0:02:29.9]} 16... Nd5 {[%clk
0:02:46]} 17. Bg5 {[%clk 0:02:25.8]} 17... Qd7 {[%clk 0:02:37.3]} 18. Rac1
{[%clk 0:02:14.2]} 18... h6 {[%clk 0:02:33.1]} 19. Bh4 {[%clk 0:02:09.6]} 19...
Nxc3 {[%clk 0:02:32.2]} 20. bxc3 {[%clk 0:02:09.5]} 20... Rfe8 {[%clk
0:02:26.5]} 21. Rxe8+ {[%clk 0:02:04.5]} 21... Rxe8 {[%clk 0:02:27.4]} 22. Bg3
{[%clk 0:01:35.6]} 22... Nc4 {[%clk 0:02:23.1]} 23. Qb3 {[%clk 0:01:24.5]} 23...
d5 {[%clk 0:02:11.1]} 24. Rb1 {[%clk 0:01:22.7]} 24... b6 {[%clk 0:02:06.8]} 25.
Qb5 {[%clk 0:01:21.9]} 25... Qd8 {[%clk 0:01:47]} 26. Re1 {[%clk 0:01:13.5]}
26... Rxe1+ {[%clk 0:01:36.2]} 27. Nxe1 {[%clk 0:01:14.4]} 27... Nd2 {[%clk
0:01:24.9]} 28. f3 {[%clk 0:01:03.6]} 28... Qe7 {[%clk 0:01:04.9]} 29. Qxd5
{[%clk 0:00:52]} 29... Qe2 {[%clk 0:01:04.4]} 30. Qa8+ {[%clk 0:00:43.2]} 30...
Kh7 {[%clk 0:01:03.2]} 31. Qxa7 {[%clk 0:00:42.6]} 31... Nf1 {[%clk 0:00:43.3]}
32. Qc7 {[%clk 0:00:28.9]} 32... Nd2 {[%clk 0:00:31.7]} 33. Qxb6 {[%clk
0:00:24.4]} 33... Qf1+ {[%clk 0:00:28.3]} 34. Kh2 {[%clk 0:00:24.5]} 34... Qe2
{[%clk 0:00:28.1]} 35. Qc7 {[%clk 0:00:23]} 35... h5 {[%clk 0:00:17.4]} 36. h4
{[%clk 0:00:20.3]} 36... Kg8 {[%clk 0:00:16]} 37. Qb8+ {[%clk 0:00:18.2]} 37...
Kh7 {[%clk 0:00:16.1]} 38. Qf4 {[%clk 0:00:18.6]} 38... Nf1+ {[%clk 0:00:13.3]}
39. Kg1 {[%clk 0:00:18.6]} 39... Nd2 {[%clk 0:00:12]} 40. a4 {[%clk 0:00:14]}
40... Qf1+ {[%clk 0:00:11.4]} 41. Kh2 {[%clk 0:00:14.1]} 41... Qe2 {[%clk
0:00:08]} 42. a5 {[%clk 0:00:14.2]} 42... Kg8 {[%clk 0:00:07.2]} 43. Qb8+ {[%clk
0:00:11.4]} 43... Kh7 {[%clk 0:00:07.3]} 44. Qc7 {[%clk 0:00:11.5]} 44... Kg8
{[%clk 0:00:06.8]} 45. Kg1 {[%clk 0:00:09.2]} 45... Qf1+ {[%clk 0:00:06.7]} 46.
Kh2 {[%clk 0:00:09.8]} 46... Qe2 {[%clk 0:00:07.6]} 47. Qf4 {[%clk 0:00:09.2]}
47... Bf8 {[%clk 0:00:05.7]} 48. Qe5 {[%clk 0:00:07.2]} 48... Qc4 {[%clk
0:00:03.3]} 49. d5 {[%clk 0:00:05.1]} 49... Bg7 {[%clk 0:00:02.4]} 50. Qe8+
{[%clk 0:00:04.4]} 50... Kh7 {[%clk 0:00:02.2]} 51. d6 {[%clk 0:00:03.3]} 51...
Nf1+ {[%clk 0:00:01.5]} 52. Kh3 {[%clk 0:00:03.9]} 52... Nd2 {[%clk 0:00:02.3]}
53. d7 {[%clk 0:00:03.8]} 53... Qf1 {[%clk 0:00:02.9]} 54. d8=Q {[%clk
0:00:03.8]} 54... Qh1+ {[%clk 0:00:03.8]} 55. Bh2 {[%clk 0:00:04.2]} 55... Nf1
{[%clk 0:00:04.7]} 56. Qg8+ {[%clk 0:00:04.6]} 56... Kh6 {[%clk 0:00:05.5]} 57.
Qg5# {[%clk 0:00:05.5]} 1-0